[Event "NJSK 2023 Jeugd C"]
[Site "Almelo, Netherlands"]
[Date "2023.05.02"]
[Round "3.4"]
[White "Zecha, Oscar"]
[Black "Terlouw, Wouter"]
[Result "1-0"]
[TimeControl "90min/40moves + 30min + 30sec/move"]
[WhiteElo "1879"]
[BlackElo "1923"]

1. d4 {[%clk 01:30:58]} Nf6 {[%clk 01:30:45]} {[%emt 00:00:16]} 2. c4 {[%clk
01:31:27]} {[%emt 00:00:01]} e6 {[%clk 01:30:59]} {[%emt 00:00:15]} 3. Nf3
{[%clk 01:31:48]} {[%emt 00:00:08]} b6 {[%clk 01:31:19]} {[%emt 00:00:10]} 4.
g3 {[%clk 01:32:17]} {[%emt 00:00:01]} Bb7 {[%clk 01:31:43]} {[%emt 00:00:07]}
5. Bg2 {[%clk 01:32:45]} {[%emt 00:00:02]} Be7 {[%clk 01:32:05]} {[%emt
00:00:07]} 6. O-O {[%clk 01:32:45]} {[%emt 00:00:30]} O-O {[%clk 01:32:27]}
{[%emt 00:00:09]} 7. Nc3 {[%clk 01:33:02]} {[%emt 00:00:13]} d5 {[%clk
01:32:39]} {[%emt 00:00:18]} 8. Ne5 {[%clk 01:30:54]} {[%emt 00:02:37]} Nbd7
{[%clk 01:30:59]} {[%emt 00:02:10]} 9. cxd5 {[%clk 01:29:46]} {[%emt 00:01:39]}
Nxe5 {[%clk 01:29:20]} {[%emt 00:02:09]} 10. dxe5 {[%clk 01:29:56]} {[%emt
00:00:20]} Nxd5 {[%clk 01:29:38]} {[%emt 00:00:12]} 11. Qb3 {[%clk 01:23:02]}
{[%emt 00:07:24]} Nxc3 {[%clk 01:29:24]} {[%emt 00:00:43]} 12. Bxb7 {[%clk
01:19:27]} {[%emt 00:04:04]} Nxe2+ {[%clk 01:29:10]} {[%emt 00:00:45]} 13. Kg2
{[%clk 01:19:29]} {[%emt 00:00:28]} Rb8 {[%clk 01:27:26]} {[%emt 00:02:14]} 14.
Be4 {[%clk 01:15:19]} {[%emt 00:04:40]} Nxc1 {[%clk 01:24:11]} {[%emt
00:03:45]} 15. Qc2 {[%clk 01:06:26]} {[%emt 00:09:24]} Nxa2 {[%clk 01:19:37]}
{[%emt 00:05:04]} 16. Rxa2 {[%clk 01:06:32]} {[%emt 00:00:24]} a5 {[%clk
01:17:05]} {[%emt 00:03:02]} 17. Rd1 {[%clk 01:04:24]} {[%emt 00:02:38]} Qc8
{[%clk 01:16:54]} {[%emt 00:00:39]} 18. Bc6 {[%clk 01:00:12]} {[%emt 00:04:43]}
Rd8 {[%clk 01:08:23]} {[%emt 00:09:01]} 19. Raa1 {[%clk 00:59:36]} {[%emt
00:01:07]} Qa6 {[%clk 01:03:08]} {[%emt 00:05:45]} 20. Be4 {[%clk 00:36:45]}
{[%emt 00:23:21]} Bc5 {[%clk 00:59:51]} {[%emt 00:03:46]} 21. Bxh7+ {[%clk
00:36:01]} {[%emt 00:01:14]} Kh8 {[%clk 00:59:59]} {[%emt 00:00:23]} 22. Bd3
{[%clk 00:27:58]} {[%emt 00:08:34]} Qb7+ {[%clk 01:00:09]} {[%emt 00:00:18]} 23.
Be4 {[%clk 00:28:27]} {[%emt 00:00:02]} c6 {[%clk 01:00:20]} {[%emt 00:00:19]}
24. Qe2 {[%clk 00:28:37]} {[%emt 00:00:20]} g6 {[%clk 00:54:35]} {[%emt
00:06:14]} 25. Qf3 {[%clk 00:28:55]} {[%emt 00:00:12]} Rxd1 {[%clk 00:53:14]}
{[%emt 00:01:52]} 26. Rxd1 {[%clk 00:29:22]} {[%emt 00:00:02]} Rc8 {[%clk
00:53:21]} {[%emt 00:00:21]} 27. h4 {[%clk 00:29:51]} {[%emt 00:00:04]} Qc7
{[%clk 00:49:38]} {[%emt 00:04:13]} 28. Qf4 {[%clk 00:26:47]} {[%emt 00:03:34]}
Bf8 {[%clk 00:45:17]} {[%emt 00:04:51]} 29. h5 {[%clk 00:26:27]} {[%emt
00:00:50]} gxh5 {[%clk 00:44:52]} {[%emt 00:00:54]} 30. Rh1 {[%clk 00:26:03]}
{[%emt 00:00:54]} Bg7 {[%clk 00:45:03]} {[%emt 00:00:19]} 31. Rxh5+ {[%clk
00:25:33]} {[%emt 00:01:00]} Kg8 {[%clk 00:45:28]} {[%emt 00:00:06]} 32. Qg5
{[%clk 00:22:41]} {[%emt 00:03:22]} Kf8 {[%clk 00:41:52]} {[%emt 00:04:03]} 33.
f4 {[%clk 00:22:57]} {[%emt 00:00:17]} Qe7 {[%clk 00:39:56]} {[%emt 00:02:26]}
34. Qg4 {[%clk 00:23:02]} {[%emt 00:00:25]} f5 {[%clk 00:38:26]} {[%emt
00:02:00]} 35. Rxf5+ {[%clk 00:20:06]} {[%emt 00:03:26]} Ke8 {[%clk 00:36:04]}
{[%emt 00:02:52]} 36. Qg6+ {[%clk 00:20:16]} {[%emt 00:00:20]} Kd8 {[%clk
00:36:25]} {[%emt 00:00:08]} 37. Rf7 {[%clk 00:20:33]} {[%emt 00:00:13]} Qb4
{[%clk 00:36:34]} {[%emt 00:00:09]} 38. Rxg7 {[%clk 00:20:37]} {[%emt
00:00:38]} Qxb2+ {[%clk 00:36:45]} {[%emt 00:00:20]} 39. Kh3 {[%clk 00:21:01]}
{[%emt 00:00:05]} 1-0

[Event "NJSK 2023 Jeugd C"]
[Site "Almelo, Netherlands"]
[Date "2023.05.02"]
[Round "3.5"]
[White "Zhu, Chenwu"]
[Black "Kazarjan, Gachatur"]
[Result "0-1"]
[TimeControl "90min/40moves + 30min + 30sec/move"]
[WhiteElo "2052"]
[BlackElo "1872"]

1. e4 {[%clk 01:30:59]} {[%emt 00:00:01]} c5 {[%clk 01:30:56]} {[%emt
00:00:04]} 2. Nf3 {[%clk 01:31:24]} {[%emt 00:00:05]} d6 {[%clk 01:31:21]}
{[%emt 00:00:05]} 3. d4 {[%clk 01:31:37]} {[%emt 00:00:17]} cxd4 {[%clk
01:31:31]} {[%emt 00:00:20]} 4. Nxd4 {[%clk 01:31:58]} {[%emt 00:00:10]} Nf6
{[%clk 01:31:54]} {[%emt 00:00:06]} 5. Nc3 {[%clk 01:32:24]} {[%emt 00:00:04]}
Bd7 {[%clk 01:32:19]} {[%emt 00:00:06]} 6. g3 {[%clk 01:31:51]} {[%emt
00:01:02]} g6 {[%clk 01:32:11]} {[%emt 00:00:39]} 7. Bg2 {[%clk 01:31:40]}
{[%emt 00:00:42]} Nc6 {[%clk 01:32:18]} {[%emt 00:00:22]} 8. Nde2 {[%clk
01:31:20]} {[%emt 00:00:50]} Bg7 {[%clk 01:32:32]} {[%emt 00:00:17]} 9. h3
{[%clk 01:31:26]} {[%emt 00:00:24]} a6 {[%clk 01:28:51]} {[%emt 00:04:11]} 10.
a4 {[%clk 01:30:31]} {[%emt 00:01:24]} Rb8 {[%clk 01:22:08]} {[%emt 00:07:13]}
11. O-O {[%clk 01:28:54]} {[%emt 00:02:07]} h5 {[%clk 01:21:52]} {[%emt
00:00:46]} 12. Nd5 {[%clk 01:17:44]} {[%emt 00:11:40]} Nxd5 {[%clk 01:13:48]}
{[%emt 00:08:34]} 13. exd5 {[%clk 01:17:23]} {[%emt 00:00:51]} Ne5 {[%clk
01:13:32]} {[%emt 00:00:45]} 14. Nd4 {[%clk 01:01:16]} {[%emt 00:16:37]} Qc8
{[%clk 00:51:31]} {[%emt 00:22:31]} 15. Kh2 {[%clk 00:55:02]} {[%emt 00:06:45]}
Bf6 {[%clk 00:30:20]} {[%emt 00:21:41]} 16. f4 {[%clk 00:49:54]} {[%emt
00:05:38]} Nc4 {[%clk 00:28:21]} {[%emt 00:02:29]} 17. b3 {[%clk 00:48:04]}
{[%emt 00:02:21]} Qc5 {[%clk 00:27:16]} {[%emt 00:01:35]} 18. c3 {[%clk
00:47:31]} {[%emt 00:01:03]} Nb6 {[%clk 00:25:56]} {[%emt 00:01:50]} 19. Ne2
{[%clk 00:45:51]} {[%emt 00:02:09]} Bg4 {[%clk 00:19:07]} {[%emt 00:07:20]} 20.
Qd3 {[%clk 00:34:35]} {[%emt 00:11:45]} Bxe2 {[%clk 00:17:54]} {[%emt
00:01:44]} 21. Qxe2 {[%clk 00:35:00]} {[%emt 00:00:04]} Nxd5 {[%clk 00:16:51]}
{[%emt 00:01:34]} 22. Bb2 {[%clk 00:25:20]} {[%emt 00:10:10]} h4 {[%clk
00:15:28]} {[%emt 00:01:53]} 23. c4 {[%clk 00:18:38]} {[%emt 00:07:12]} hxg3+
{[%clk 00:14:17]} {[%emt 00:01:41]} 24. Kh1 {[%clk 00:16:36]} {[%emt 00:02:31]}
Bxb2 {[%clk 00:11:55]} {[%emt 00:02:52]} 25. Qxb2 {[%clk 00:16:47]} {[%emt
00:00:19]} Nf6 {[%clk 00:12:20]} {[%emt 00:00:05]} 26. Qc3 {[%clk 00:15:42]}
{[%emt 00:01:35]} Kf8 {[%clk 00:09:24]} {[%emt 00:03:26]} 27. Rae1 {[%clk
00:14:48]} {[%emt 00:01:23]} Qf5 {[%clk 00:07:38]} {[%emt 00:02:16]} 28. Qxg3
{[%clk 00:14:06]} {[%emt 00:01:12]} Rh7 {[%clk 00:06:30]} {[%emt 00:01:38]} 29.
Qe3 {[%clk 00:12:00]} {[%emt 00:02:37]} Kg7 {[%clk 00:05:23]} {[%emt 00:01:37]}
30. Rf3 {[%clk 00:11:47]} {[%emt 00:00:42]} Rbh8 {[%clk 00:04:20]} {[%emt
00:01:34]} 31. Qc3 {[%clk 00:11:36]} {[%emt 00:00:41]} Rh4 {[%clk 00:04:03]}
{[%emt 00:00:47]} 32. Qe3 {[%clk 00:09:25]} {[%emt 00:02:40]} e6 {[%clk
00:03:49]} {[%emt 00:00:44]} 33. Rd1 {[%clk 00:09:19]} {[%emt 00:00:36]} d5
{[%clk 00:03:20]} {[%emt 00:00:59]} 34. Rd3 {[%clk 00:08:13]} {[%emt 00:01:35]}
Qe4 {[%clk 00:03:24]} {[%emt 00:00:26]} 35. Qc1 {[%clk 00:07:20]} {[%emt
00:01:23]} dxc4 {[%clk 00:03:15]} {[%emt 00:00:39]} 36. bxc4 {[%clk 00:07:47]}
{[%emt 00:00:04]} Rc8 {[%clk 00:03:31]} {[%emt 00:00:14]} 37. Rc3 {[%clk
00:08:04]} {[%emt 00:00:12]} Nh5 {[%clk 00:03:39]} {[%emt 00:00:22]} 38. Qb2
{[%clk 00:08:05]} {[%emt 00:00:30]} Kh7 {[%clk 00:03:50]} {[%emt 00:00:20]} 39.
Rfe3 {[%clk 00:07:43]} {[%emt 00:00:51]} Qxf4 {[%clk 00:03:48]} {[%emt
00:00:32]} 40. Qxb7 {[%clk 00:07:43]} {[%emt 00:00:30]} Rd8 {[%clk 00:03:55]}
{[%emt 00:00:23]} 41. Re1 {[%clk 00:06:36]} {[%emt 00:01:37]} Ng3+ {[%clk
00:04:02]} {[%emt 00:00:24]} 42. Kg1 {[%clk 00:05:32]} {[%emt 00:01:33]} Ne2+
{[%clk 00:03:44]} {[%emt 00:00:47]} 43. Kh1 {[%clk 00:05:15]} {[%emt 00:00:48]}
Nxc3 {[%clk 00:03:27]} {[%emt 00:00:49]} 44. Rf1 {[%clk 00:05:10]} {[%emt
00:00:32]} Rd1 {[%emt 00:00:54]} 0-1

[Event "NJSK 2023 Jeugd C"]
[Site "Almelo, Netherlands"]
[Date "2023.05.02"]
[Round "3.6"]
[White "Groenewoud, Joel"]
[Black "Etienne, Ghilon"]
[Result "1-0"]
[TimeControl "90min/40moves + 30min + 30sec/move"]
[WhiteElo "1990"]
[BlackElo "1673"]

1. e4 {[%clk 01:30:57]} {[%emt 00:00:03]} e5 {[%clk 01:30:51]} {[%emt
00:00:08]} 2. Nf3 {[%clk 01:31:22]} {[%emt 00:00:05]} Nc6 {[%clk 01:31:14]}
{[%emt 00:00:07]} 3. Bc4 {[%clk 01:31:47]} {[%emt 00:00:06]} Nf6 {[%clk
01:31:37]} {[%emt 00:00:07]} 4. Ng5 {[%clk 01:32:10]} {[%emt 00:00:07]} d5
{[%clk 01:32:00]} {[%emt 00:00:07]} 5. exd5 {[%clk 01:32:33]} {[%emt 00:00:07]}
Na5 {[%clk 01:32:25]} {[%emt 00:00:05]} 6. Bb5+ {[%clk 01:32:56]} {[%emt
00:00:07]} c6 {[%clk 01:32:45]} {[%emt 00:00:10]} 7. dxc6 {[%clk 01:33:20]}
{[%emt 00:00:06]} bxc6 {[%clk 01:33:10]} {[%emt 00:00:06]} 8. Be2 {[%clk
01:33:42]} {[%emt 00:00:08]} h6 {[%clk 01:33:25]} {[%emt 00:00:14]} 9. Nf3
{[%clk 01:34:09]} {[%emt 00:00:04]} Bd6 {[%clk 01:33:39]} {[%emt 00:00:15]} 10.
d4 {[%clk 01:30:34]} {[%emt 00:04:05]} e4 {[%clk 01:28:34]} {[%emt 00:05:35]}
11. Ne5 {[%clk 01:30:19]} {[%emt 00:00:45]} Qe7 {[%clk 01:28:50]} {[%emt
00:00:13]} 12. Bf4 {[%clk 01:29:01]} {[%emt 00:01:49]} Nd7 {[%clk 01:24:37]}
{[%emt 00:04:43]} 13. O-O {[%clk 01:10:41]} {[%emt 00:18:50]} Nxe5 {[%clk
01:19:29]} {[%emt 00:05:38]} 14. dxe5 {[%clk 01:10:51]} {[%emt 00:00:20]} Bxe5
{[%clk 01:19:36]} {[%emt 00:00:23]} 15. Bxe5 {[%clk 01:10:34]} {[%emt
00:00:47]} Qxe5 {[%clk 01:20:00]} {[%emt 00:00:05]} 16. Nc3 {[%clk 01:08:58]}
{[%emt 00:02:07]} O-O {[%clk 01:14:43]} {[%emt 00:05:47]} 17. Re1 {[%clk
01:08:11]} {[%emt 00:01:17]} e3 {[%clk 01:11:15]} {[%emt 00:03:58]} 18. fxe3
{[%clk 01:05:01]} {[%emt 00:03:40]} Qxe3+ {[%clk 01:11:33]} {[%emt 00:00:13]}
19. Kh1 {[%clk 01:05:20]} {[%emt 00:00:11]} Qc5 {[%clk 00:55:02]} {[%emt
00:16:58]} 20. Bd3 {[%clk 00:57:54]} {[%emt 00:07:58]} Be6 {[%clk 00:52:07]}
{[%emt 00:03:25]} 21. Ne4 {[%clk 00:55:29]} {[%emt 00:02:55]} Qb6 {[%clk
00:49:03]} {[%emt 00:03:34]} 22. Qh5 {[%clk 00:48:56]} {[%emt 00:07:03]} Rfd8
{[%clk 00:38:11]} {[%emt 00:11:22]} 23. Rad1 {[%clk 00:21:00]} {[%emt
00:28:27]} Nc4 {[%clk 00:23:53]} {[%emt 00:14:47]} 24. Nf6+ {[%clk 00:06:24]}
{[%emt 00:15:06]} Kh8 {[%clk 00:17:59]} {[%emt 00:06:23]} 25. Rxe6 {[%clk
00:01:58]} {[%emt 00:04:57]} fxe6 {[%clk 00:17:21]} {[%emt 00:01:09]} 26. Qg6
{[%clk 00:01:59]} {[%emt 00:00:29]} gxf6 {[%clk 00:17:18]} {[%emt 00:00:32]} 27.
Qh7# {[%clk 00:02:19]} {[%emt 00:00:10]} 1-0

[Event "NJSK 2023 Jeugd C"]
[Site "Almelo, Netherlands"]
[Date "2023.05.02"]
[Round "3.7"]
[White "Lopes, Samuel"]
[Black "Chua, Ethan"]
[Result "1/2-1/2"]
[TimeControl "90min/40moves + 30min + 30sec/move"]
[WhiteElo "1865"]
[BlackElo "1776"]

1. e4 {[%clk 01:30:56]} {[%emt 00:00:03]} c6 {[%clk 01:30:56]} {[%emt
00:00:05]} 2. d4 {[%clk 01:31:16]} {[%emt 00:00:10]} d5 {[%clk 01:31:22]}
{[%emt 00:00:04]} 3. exd5 {[%clk 01:31:33]} {[%emt 00:00:14]} cxd5 {[%clk
01:31:47]} {[%emt 00:00:05]} 4. Nf3 {[%clk 01:31:51]} {[%emt 00:00:12]} Nf6
{[%clk 01:32:09]} {[%emt 00:00:08]} 5. Ne5 {[%clk 01:32:09]} {[%emt 00:00:11]}
Nbd7 {[%clk 01:31:34]} {[%emt 00:01:05]} 6. Bb5 {[%clk 01:29:07]} {[%emt
00:03:32]} a6 {[%clk 01:30:28]} {[%emt 00:01:36]} 7. Bd3 {[%clk 01:27:47]}
{[%emt 00:01:50]} Nxe5 {[%clk 01:21:43]} {[%emt 00:09:15]} 8. dxe5 {[%clk
01:27:47]} {[%emt 00:00:30]} Nd7 {[%clk 01:22:04]} {[%emt 00:00:09]} 9. Qe2
{[%clk 01:18:13]} {[%emt 00:10:04]} e6 {[%clk 01:22:01]} {[%emt 00:00:33]} 10.
O-O {[%clk 01:17:56]} {[%emt 00:00:47]} Nc5 {[%clk 01:20:04]} {[%emt 00:02:28]}
11. c3 {[%clk 01:16:59]} {[%emt 00:01:27]} Bd7 {[%clk 01:19:15]} {[%emt
00:01:19]} 12. Re1 {[%clk 01:16:31]} {[%emt 00:00:58]} Nxd3 {[%clk 01:18:06]}
{[%emt 00:01:39]} 13. Qxd3 {[%clk 01:15:33]} {[%emt 00:01:28]} Bc5 {[%clk
01:11:16]} {[%emt 00:07:19]} 14. Qg3 {[%clk 01:14:16]} {[%emt 00:01:46]} Qc7
{[%clk 01:02:33]} {[%emt 00:09:14]} 15. Nd2 {[%clk 01:12:04]} {[%emt 00:02:42]}
O-O {[%clk 00:45:58]} {[%emt 00:17:05]} 16. Nb3 {[%clk 01:10:23]} {[%emt
00:02:11]} Kh8 {[%clk 00:44:45]} {[%emt 00:01:43]} 17. Nxc5 {[%clk 01:08:17]}
{[%emt 00:02:37]} Qxc5 {[%clk 00:44:56]} {[%emt 00:00:18]} 18. Be3 {[%clk
00:58:16]} {[%emt 00:10:32]} Qb5 {[%clk 00:39:50]} {[%emt 00:05:35]} 19. Rab1
{[%clk 00:55:42]} {[%emt 00:03:05]} Qa4 {[%clk 00:36:45]} {[%emt 00:03:34]} 20.
a3 {[%clk 00:55:07]} {[%emt 00:01:06]} Qc2 {[%clk 00:36:20]} {[%emt 00:00:54]}
21. Rec1 {[%clk 00:53:47]} {[%emt 00:01:51]} Qg6 {[%clk 00:36:28]} {[%emt
00:00:21]} 22. Qxg6 {[%clk 00:53:21]} {[%emt 00:00:56]} hxg6 {[%clk 00:36:48]}
{[%emt 00:00:10]} 1/2-1/2

[Event "NJSK 2023 Jeugd C"]
[Site "Almelo, Netherlands"]
[Date "2023.05.02"]
[Round "3.8"]
[White "Katpatal, Akshaj"]
[Black "Fallaux, Storm"]
[Result "0-1"]
[TimeControl "90min/40moves + 30min + 30sec/move"]
[WhiteElo "1840"]
[BlackElo "1650"]

1. e4 {[%clk 01:30:55]} {[%emt 00:00:04]} c5 {[%clk 01:30:57]} {[%emt
00:00:04]} 2. Nf3 {[%clk 01:31:19]} {[%emt 00:00:06]} d6 {[%clk 01:31:24]}
{[%emt 00:00:04]} 3. d4 {[%clk 01:31:41]} {[%emt 00:00:08]} cxd4 {[%clk
01:31:52]} {[%emt 00:00:02]} 4. Nxd4 {[%clk 01:32:04]} {[%emt 00:00:07]} Nf6
{[%clk 01:32:19]} {[%emt 00:00:03]} 5. Nc3 {[%clk 01:32:27]} {[%emt 00:00:07]}
a6 {[%clk 01:32:45]} {[%emt 00:00:03]} 6. Bc4 {[%clk 01:31:49]} {[%emt
00:01:08]} e6 {[%clk 01:32:17]} {[%emt 00:00:58]} 7. a3 {[%clk 01:31:23]}
{[%emt 00:00:56]} b5 {[%clk 01:32:26]} {[%emt 00:00:21]} 8. Bb3 {[%clk
01:30:12]} {[%emt 00:01:42]} Bb7 {[%clk 01:32:35]} {[%emt 00:00:20]} 9. f3
{[%clk 01:30:12]} {[%emt 00:00:30]} Be7 {[%clk 01:31:52]} {[%emt 00:01:13]} 10.
Be3 {[%clk 01:30:18]} {[%emt 00:00:23]} Nc6 {[%clk 01:27:58]} {[%emt 00:04:25]}
11. O-O {[%clk 01:26:36]} {[%emt 00:04:12]} O-O {[%clk 01:26:52]} {[%emt
00:01:36]} 12. Re1 {[%clk 01:26:35]} {[%emt 00:00:30]} Na5 {[%clk 01:24:28]}
{[%emt 00:02:54]} 13. Qd2 {[%clk 01:21:25]} {[%emt 00:05:41]} Nxb3 {[%clk
01:16:21]} {[%emt 00:08:37]} 14. Nxb3 {[%clk 01:21:27]} {[%emt 00:00:27]} d5
{[%clk 01:14:56]} {[%emt 00:01:54]} 15. e5 {[%clk 01:13:19]} {[%emt 00:08:39]}
Nd7 {[%clk 01:15:04]} {[%emt 00:00:23]} 16. f4 {[%clk 01:13:23]} {[%emt
00:00:26]} Rc8 {[%clk 01:06:18]} {[%emt 00:09:16]} 17. Qf2 {[%clk 01:09:23]}
{[%emt 00:04:29]} Qc7 {[%clk 00:56:41]} {[%emt 00:10:08]} 18. Rad1 {[%clk
01:05:22]} {[%emt 00:04:30]} b4 {[%clk 00:49:26]} {[%emt 00:07:45]} 19. axb4
{[%clk 01:01:49]} {[%emt 00:04:03]} Bxb4 {[%clk 00:49:30]} {[%emt 00:00:27]} 20.
Bd4 {[%clk 01:02:01]} {[%emt 00:00:18]} Nc5 {[%clk 00:39:44]} {[%emt 00:10:16]}
21. Nxc5 {[%clk 00:52:55]} {[%emt 00:09:35]} Bxc5 {[%clk 00:40:02]} {[%emt
00:00:12]} 22. Bxc5 {[%clk 00:53:21]} {[%emt 00:00:04]} Qxc5 {[%clk 00:40:27]}
{[%emt 00:00:05]} 23. Qxc5 {[%clk 00:53:42]} {[%emt 00:00:10]} Rxc5 {[%clk
00:40:56]} 24. Rd4 {[%clk 00:54:00]} {[%emt 00:00:12]} a5 {[%clk 00:33:01]}
{[%emt 00:08:25]} 25. g4 {[%clk 00:51:26]} {[%emt 00:03:03]} Bc6 {[%clk
00:33:03]} {[%emt 00:00:28]} 26. f5 {[%clk 00:51:33]} {[%emt 00:00:23]} Rb8
{[%clk 00:33:07]} {[%emt 00:00:26]} 27. fxe6 {[%clk 00:44:01]} {[%emt
00:08:02]} fxe6 {[%clk 00:32:54]} {[%emt 00:00:43]} 28. Nd1 {[%clk 00:40:13]}
{[%emt 00:04:17]} Rxc2 {[%clk 00:32:56]} {[%emt 00:00:29]} 29. g5 {[%clk
00:39:37]} {[%emt 00:01:06]} Kf7 {[%clk 00:31:59]} {[%emt 00:01:27]} 30. h4
{[%clk 00:30:05]} {[%emt 00:10:02]} Rb4 {[%clk 00:31:32]} {[%emt 00:00:56]} 31.
Rxb4 {[%clk 00:29:52]} {[%emt 00:00:43]} axb4 {[%clk 00:32:01]} {[%emt
00:00:02]} 32. h5 {[%clk 00:30:06]} {[%emt 00:00:16]} d4 {[%clk 00:31:42]}
{[%emt 00:00:49]} 33. Nf2 {[%clk 00:29:45]} {[%emt 00:00:51]} Rxb2 {[%clk
00:31:59]} {[%emt 00:00:12]} 34. Rd1 {[%clk 00:30:07]} {[%emt 00:00:09]} Bd5
{[%clk 00:31:41]} {[%emt 00:00:48]} 35. Rxd4 {[%clk 00:30:27]} {[%emt
00:00:10]} b3 {[%clk 00:32:04]} {[%emt 00:00:07]} 36. Rb4 {[%clk 00:30:16]}
{[%emt 00:00:41]} Re2 {[%clk 00:32:06]} {[%emt 00:00:28]} 37. Nd3 {[%clk
00:28:37]} {[%emt 00:02:10]} Rg2+ {[%clk 00:32:13]} {[%emt 00:00:22]} 38. Kf1
{[%clk 00:28:40]} {[%emt 00:00:27]} Rxg5 {[%clk 00:32:27]} {[%emt 00:00:16]}
0-1

[Event "NJSK 2023 Jeugd C"]
[Site "Almelo, Netherlands"]
[Date "2023.05.02"]
[Round "3.9"]
[White "Wortman, Rawi"]
[Black "Ambrona Navarro, Himar"]
[Result "1/2-1/2"]
[TimeControl "90min/40moves + 30min + 30sec/move"]
[WhiteElo "1668"]
[BlackElo "1834"]

1. e4 {[%clk 01:30:58]} {[%emt 00:00:02]} c6 {[%clk 01:30:50]} {[%emt
00:00:10]} 2. d4 {[%clk 01:31:23]} {[%emt 00:00:05]} d5 {[%clk 01:31:08]}
{[%emt 00:00:08]} 3. exd5 {[%clk 01:31:03]} {[%emt 00:00:54]} cxd5 {[%clk
01:31:24]} {[%emt 00:00:08]} 4. c4 {[%clk 01:31:31]} {[%emt 00:00:07]} Nf6
{[%clk 01:31:32]} {[%emt 00:00:20]} 5. Nc3 {[%clk 01:31:41]} {[%emt 00:00:22]}
Nc6 {[%clk 01:31:40]} {[%emt 00:00:21]} 6. Nf3 {[%clk 01:31:56]} {[%emt
00:00:16]} a6 {[%clk 01:31:46]} {[%emt 00:00:23]} 7. cxd5 {[%clk 01:30:55]}
{[%emt 00:01:32]} Nxd5 {[%clk 01:31:58]} {[%emt 00:00:18]} 8. Bc4 {[%clk
01:30:39]} {[%emt 00:00:46]} e6 {[%clk 01:31:24]} {[%emt 00:01:03]} 9. a3
{[%clk 01:27:22]} {[%emt 00:03:48]} Be7 {[%clk 01:29:03]} {[%emt 00:02:49]} 10.
O-O {[%clk 01:27:17]} {[%emt 00:00:37]} O-O {[%clk 01:28:04]} {[%emt 00:01:27]}
11. Nxd5 {[%clk 01:24:40]} {[%emt 00:03:09]} exd5 {[%clk 01:28:06]} {[%emt
00:00:27]} 12. Ba2 {[%clk 01:24:42]} {[%emt 00:00:28]} Bg4 {[%clk 01:26:35]}
{[%emt 00:02:00]} 13. Qb3 {[%clk 01:18:20]} {[%emt 00:06:54]} Bxf3 {[%clk
01:23:43]} {[%emt 00:03:21]} 14. Qxf3 {[%clk 01:18:16]} {[%emt 00:00:35]} Nxd4
{[%clk 01:23:05]} {[%emt 00:01:08]} 15. Qxd5 {[%clk 01:18:12]} {[%emt
00:00:33]} Qxd5 {[%clk 01:22:31]} {[%emt 00:01:04]} 16. Bxd5 {[%clk 01:18:36]}
{[%emt 00:00:07]} Rab8 {[%clk 01:21:47]} {[%emt 00:01:11]} 17. Be3 {[%clk
01:14:44]} {[%emt 00:04:25]} Nc2 {[%clk 01:19:05]} {[%emt 00:03:11]} 18. Rac1
{[%clk 01:15:01]} {[%emt 00:00:13]} Nxe3 {[%clk 01:17:37]} {[%emt 00:01:58]} 19.
fxe3 {[%clk 01:15:29]} {[%emt 00:00:02]} Bg5 {[%clk 01:17:46]} {[%emt
00:00:20]} 20. Rc7 {[%clk 01:12:40]} {[%emt 00:03:21]} Bxe3+ {[%clk 01:14:17]}
{[%emt 00:03:59]} 21. Kh1 {[%clk 01:13:00]} {[%emt 00:00:11]} b5 {[%clk
01:14:09]} {[%emt 00:00:37]} 22. Rfxf7 {[%clk 01:09:40]} {[%emt 00:03:49]} Rxf7
{[%clk 01:14:22]} {[%emt 00:00:17]} 23. Rxf7 {[%clk 01:09:57]} {[%emt
00:00:14]} Kh8 {[%clk 01:14:41]} {[%emt 00:00:10]} 24. Bb7 {[%clk 01:02:49]}
{[%emt 00:07:39]} Rd8 {[%clk 01:12:44]} {[%emt 00:02:26]} 25. g3 {[%clk
01:00:02]} {[%emt 00:03:18]} Bc1 {[%clk 01:08:51]} {[%emt 00:04:21]} 26. Bxa6
{[%clk 00:58:56]} {[%emt 00:01:38]} Bxb2 {[%clk 01:09:01]} {[%emt 00:00:19]} 27.
Bxb5 {[%clk 00:57:04]} {[%emt 00:02:23]} Bxa3 {[%clk 01:09:15]} {[%emt
00:00:15]} 28. Kg2 {[%clk 00:56:18]} {[%emt 00:01:17]} Bb2 {[%emt 00:00:23]} 29.
Ba6 1/2-1/2